[Event "*** Titled Tuesday Blitz"]
[Site "Chess.com"]
[Date "2020.10.27"]
[Round "5"]
[White "svilson23"]
[Black "AleksibFan"]
[Result "0-1"]
[WhiteElo "2380"]
[BlackElo "2570"]
[TimeControl "180+1"]
[EndTime "10:56:30 PDT"]
[Termination "AleksibFan won on time"]

1. e4 {[%clk 0:02:54.6]} 1... d5 {[%clk 0:02:59.5]} 2. exd5 {[%clk 0:02:54]}
2... Qxd5 {[%clk 0:03:00.4]} 3. Nc3 {[%clk 0:02:53.5]} 3... Qd6 {[%clk
0:03:00.5]} 4. d4 {[%clk 0:02:36.4]} 4... Nf6 {[%clk 0:03:00.3]} 5. Nf3 {[%clk
0:02:34.8]} 5... a6 {[%clk 0:02:59.7]} 6. Bd3 {[%clk 0:02:29]} 6... Bg4 {[%clk
0:02:58.4]} 7. h3 {[%clk 0:02:26.6]} 7... Bh5 {[%clk 0:02:55.7]} 8. O-O {[%clk
0:02:25.5]} 8... Nc6 {[%clk 0:02:48.8]} 9. Ne4 {[%clk 0:02:25.3]} 9... Nxe4
{[%clk 0:02:46.3]} 10. Bxe4 {[%clk 0:02:23.3]} 10... e6 {[%clk 0:02:45.2]} 11.
c3 {[%clk 0:02:05.9]} 11... O-O-O {[%clk 0:02:39.2]} 12. Bxc6 {[%clk 0:01:28.3]}
12... Qxc6 {[%clk 0:02:36.5]} 13. Ne5 {[%clk 0:01:28.8]} 13... Bxd1 {[%clk
0:02:30.3]} 14. Nxc6 {[%clk 0:01:29.2]} 14... bxc6 {[%clk 0:02:25.2]} 15. Rxd1
{[%clk 0:01:28.9]} 15... c5 {[%clk 0:02:10]} 16. Be3 {[%clk 0:01:27.9]} 16...
cxd4 {[%clk 0:02:09.5]} 17. Rxd4 {[%clk 0:01:20.1]} 17... Rxd4 {[%clk
0:02:06.8]} 18. Bxd4 {[%clk 0:01:20.5]} 18... f6 {[%clk 0:02:04.1]} 19. f4
{[%clk 0:01:18.5]} 19... Bd6 {[%clk 0:02:02.5]} 20. Be3 {[%clk 0:01:15.6]} 20...
Re8 {[%clk 0:01:58.9]} 21. Kf2 {[%clk 0:01:15.2]} 21... Kb7 {[%clk 0:01:50.4]}
22. Rd1 {[%clk 0:01:14]} 22... Kc6 {[%clk 0:01:47.1]} 23. Rd4 {[%clk 0:01:11.4]}
23... e5 {[%clk 0:01:40.8]} 24. Rc4+ {[%clk 0:00:58.8]} 24... Kd7 {[%clk
0:01:21.6]} 25. f5 {[%clk 0:00:52.7]} 25... e4 {[%clk 0:00:53.3]} 26. Ra4 {[%clk
0:00:51.8]} 26... Re5 {[%clk 0:00:52.7]} 27. g4 {[%clk 0:00:51.7]} 27... a5
{[%clk 0:00:51.9]} 28. Bf4 {[%clk 0:00:46.2]} 28... Rb5 {[%clk 0:00:46.4]} 29.
Bxd6 {[%clk 0:00:35.8]} 29... Rxb2+ {[%clk 0:00:46.2]} 30. Ke3 {[%clk
0:00:36.5]} 30... Kxd6 {[%clk 0:00:46.5]} 31. Rxa5 {[%clk 0:00:36.3]} 31... Rh2
{[%clk 0:00:43]} 32. Kxe4 {[%clk 0:00:34.9]} 32... Rxh3 {[%clk 0:00:42.4]} 33.
c4 {[%clk 0:00:32.5]} 33... Rg3 {[%clk 0:00:41.8]} 34. Kf4 {[%clk 0:00:26.5]}
34... Rc3 {[%clk 0:00:41.1]} 35. Ra8 {[%clk 0:00:19.2]} 35... Rxc4+ {[%clk
0:00:40]} 36. Kf3 {[%clk 0:00:19.9]} 36... Rc3+ {[%clk 0:00:36.9]} 37. Kf4
{[%clk 0:00:19.2]} 37... Rc4+ {[%clk 0:00:36.1]} 38. Kf3 {[%clk 0:00:18.5]}
38... Ke7 {[%clk 0:00:37]} 39. a4 {[%clk 0:00:17.7]} 39... Rc5 {[%clk
0:00:28.5]} 40. a5 {[%clk 0:00:17.6]} 40... h5 {[%clk 0:00:27.9]} 41. a6 {[%clk
0:00:16.8]} 41... Rc3+ {[%clk 0:00:19.6]} 42. Kf4 {[%clk 0:00:07.4]} 42... Rc4+
{[%clk 0:00:19.6]} 43. Ke3 {[%clk 0:00:05.1]} 43... Rxg4 {[%clk 0:00:18.8]} 44.
a7 {[%clk 0:00:05.2]} 44... Ra4 {[%clk 0:00:18.3]} 45. Kf3 {[%clk 0:00:01.6]}
45... Kd7 {[%clk 0:00:18]} 0-1

[Event "*** Titled Tuesday Blitz"]
[Site "Chess.com"]
[Date "2020.10.27"]
[Round "5"]
[White "Borsuk_Konstantin"]
[Black "GMaka"]
[Result "0-1"]
[WhiteElo "2558"]
[BlackElo "2397"]
[TimeControl "180+1"]
[EndTime "10:56:32 PDT"]
[Termination "GMaka won on time"]

1. d4 {[%clk 0:03:00.9]} 1... Nf6 {[%clk 0:02:59.3]} 2. c4 {[%clk 0:03:01]} 2...
Nc6 {[%clk 0:02:58.6]} 3. Nc3 {[%clk 0:02:59.3]} 3... e5 {[%clk 0:02:55.1]} 4.
d5 {[%clk 0:02:59.1]} 4... Ne7 {[%clk 0:02:54.3]} 5. h4 {[%clk 0:02:58]} 5... h5
{[%clk 0:02:42.3]} 6. e3 {[%clk 0:02:44.7]} 6... Ng6 {[%clk 0:02:19.3]} 7. Bd3
{[%clk 0:02:44.2]} 7... Bb4 {[%clk 0:02:15]} 8. Qc2 {[%clk 0:02:42.5]} 8... Ne7
{[%clk 0:02:01.9]} 9. a3 {[%clk 0:02:30.3]} 9... Bxc3+ {[%clk 0:02:01.2]} 10.
Qxc3 {[%clk 0:02:30.9]} 10... d6 {[%clk 0:02:00.3]} 11. e4 {[%clk 0:02:28.4]}
11... a5 {[%clk 0:01:52.7]} 12. b3 {[%clk 0:02:22.3]} 12... c6 {[%clk 0:01:52]}
13. Bg5 {[%clk 0:02:18.7]} 13... Nh7 {[%clk 0:01:50.2]} 14. Be3 {[%clk 0:02:18]}
14... c5 {[%clk 0:01:46.7]} 15. f4 {[%clk 0:02:08.8]} 15... exf4 {[%clk
0:01:25.1]} 16. Bxf4 {[%clk 0:02:03.6]} 16... O-O {[%clk 0:01:21.4]} 17. O-O-O
{[%clk 0:01:55.7]} 17... Ng6 {[%clk 0:01:20.7]} 18. Bg3 {[%clk 0:01:53.7]} 18...
Nf6 {[%clk 0:01:20.3]} 19. Nf3 {[%clk 0:01:51.7]} 19... Ng4 {[%clk 0:01:20.5]}
20. e5 {[%clk 0:01:45.1]} 20... N6xe5 {[%clk 0:01:19.8]} 21. Nxe5 {[%clk
0:01:45]} 21... Nxe5 {[%clk 0:01:13.4]} 22. Bxe5 {[%clk 0:01:43.9]} 22... dxe5
{[%clk 0:01:14]} 23. Qxe5 {[%clk 0:01:44.4]} 23... Bg4 {[%clk 0:01:14.7]} 24.
Rde1 {[%clk 0:01:30.7]} 24... a4 {[%clk 0:01:13.9]} 25. b4 {[%clk 0:01:13]}
25... b5 {[%clk 0:01:03.7]} 26. bxc5 {[%clk 0:01:10.4]} 26... bxc4 {[%clk
0:01:02.2]} 27. Bxc4 {[%clk 0:01:10.3]} 27... Qa5 {[%clk 0:00:57.9]} 28. Qd4
{[%clk 0:01:06.9]} 28... Rac8 {[%clk 0:00:42.9]} 29. c6 {[%clk 0:01:05.2]} 29...
Rfd8 {[%clk 0:00:43.4]} 30. Qd2 {[%clk 0:00:43.3]} 30... Qc5 {[%clk 0:00:42.3]}
31. Qb4 {[%clk 0:00:42.4]} 31... Qd4 {[%clk 0:00:40.1]} 32. Rd1 {[%clk
0:00:28.2]} 32... Bxd1 {[%clk 0:00:34.5]} 33. Rxd1 {[%clk 0:00:27.7]} 33... Qe3+
{[%clk 0:00:30.9]} 34. Rd2 {[%clk 0:00:25.7]} 34... Rb8 {[%clk 0:00:26.5]} 35.
Qxa4 {[%clk 0:00:25.6]} 35... Qe1+ {[%clk 0:00:25.7]} 36. Kc2 {[%clk 0:00:13.7]}
36... Qb1+ {[%clk 0:00:23]} 37. Kc3 {[%clk 0:00:13.8]} 37... Qc1+ {[%clk
0:00:22.6]} 38. Kd3 {[%clk 0:00:09.8]} 38... Qf1+ {[%clk 0:00:19.5]} 39. Kd4
{[%clk 0:00:09.2]} 39... Qf4+ {[%clk 0:00:19.3]} 40. Kc3 {[%clk 0:00:09.5]}
40... Qe3+ {[%clk 0:00:17.7]} 41. Kc2 {[%clk 0:00:08.2]} 41... Qc5 {[%clk
0:00:16.2]} 42. Rd3 {[%clk 0:00:03.9]} 42... Ra8 {[%clk 0:00:15]} 43. Qb4 {[%clk
0:00:03.6]} 43... Qf2+ {[%clk 0:00:15.5]} 44. Kc3 {[%clk 0:00:03.8]} 44... Qf6+
{[%clk 0:00:14.9]} 45. Kc2 {[%clk 0:00:02.1]} 45... Rdb8 {[%clk 0:00:15.4]} 46.
Qc3 {[%clk 0:00:02.4]} 46... Qf2+ {[%clk 0:00:15]} 47. Rd2 {[%clk 0:00:01.2]}
47... Qf5+ {[%clk 0:00:15.5]} 0-1

[Event "*** Titled Tuesday Blitz"]
[Site "Chess.com"]
[Date "2020.10.27"]
[Round "5"]
[White "MarkoPe"]
[Black "Sesleria"]
[Result "1-0"]
[WhiteElo "2190"]
[BlackElo "1889"]
[TimeControl "180+1"]
[EndTime "10:56:33 PDT"]
[Termination "MarkoPe won by resignation"]

1. c4 {[%clk 0:03:00.9]} 1... Nf6 {[%clk 0:02:51.7]} 2. Nc3 {[%clk 0:02:58]}
2... e6 {[%clk 0:02:51.4]} 3. g3 {[%clk 0:02:54.5]} 3... d5 {[%clk 0:02:51.1]}
4. Bg2 {[%clk 0:02:46.2]} 4... c6 {[%clk 0:02:50.4]} 5. b3 {[%clk 0:02:36.3]}
5... Be7 {[%clk 0:02:46.5]} 6. Bb2 {[%clk 0:02:30.2]} 6... O-O {[%clk
0:02:45.6]} 7. d3 {[%clk 0:02:29.6]} 7... Nbd7 {[%clk 0:02:19.1]} 8. Nf3 {[%clk
0:02:28.3]} 8... a5 {[%clk 0:02:11.5]} 9. O-O {[%clk 0:02:27]} 9... Nb6 {[%clk
0:02:01.3]} 10. e4 {[%clk 0:02:24.2]} 10... d4 {[%clk 0:01:39.2]} 11. Ne2 {[%clk
0:02:05.5]} 11... c5 {[%clk 0:01:38.9]} 12. Nd2 {[%clk 0:02:04]} 12... Bd7
{[%clk 0:01:30.6]} 13. f4 {[%clk 0:02:03.8]} 13... a4 {[%clk 0:01:30.3]} 14. e5
{[%clk 0:02:02.9]} 14... Ng4 {[%clk 0:01:18.3]} 15. Bxb7 {[%clk 0:01:25.4]}
15... Ne3 {[%clk 0:01:16.4]} 16. Qe1 {[%clk 0:01:25.5]} 16... h5 {[%clk
0:01:02.8]} 17. Bxa8 {[%clk 0:01:19.5]} 17... Qxa8 {[%clk 0:01:02.6]} 18. Ne4
{[%clk 0:01:19.9]} 18... Bc6 {[%clk 0:00:54.2]} 19. Qf2 {[%clk 0:00:59.7]} 19...
Nxf1 {[%clk 0:00:48.7]} 20. Rxf1 {[%clk 0:00:58.8]} 20... Bxe4 {[%clk
0:00:48.9]} 21. dxe4 {[%clk 0:00:58.4]} 21... Qxe4 {[%clk 0:00:49.6]} 22. Nc1
{[%clk 0:00:56.1]} 22... Rd8 {[%clk 0:00:39]} 23. Qf3 {[%clk 0:00:54.4]} 23...
Qc2 {[%clk 0:00:31.9]} 24. Rf2 {[%clk 0:00:38.6]} 24... Qf5 {[%clk 0:00:31.8]}
25. Qb7 {[%clk 0:00:34.3]} 25... Nd7 {[%clk 0:00:21.5]} 26. bxa4 {[%clk
0:00:28.6]} 26... h4 {[%clk 0:00:19.6]} 27. a5 {[%clk 0:00:25.1]} 27... hxg3
{[%clk 0:00:19.2]} 28. hxg3 {[%clk 0:00:24.8]} 28... Qg4 {[%clk 0:00:18.6]} 29.
Kg2 {[%clk 0:00:23]} 29... Nf8 {[%clk 0:00:13.8]} 30. Qxe7 {[%clk 0:00:21.2]}
30... Rb8 {[%clk 0:00:12.5]} 31. a6 {[%clk 0:00:20]} 31... Ng6 {[%clk
0:00:11.3]} 32. Qg5 {[%clk 0:00:16.3]} 32... Qd1 {[%clk 0:00:08.4]} 33. a7
{[%clk 0:00:15.5]} 33... Ra8 {[%clk 0:00:08.9]} 34. f5 {[%clk 0:00:11.7]} 34...
exf5 {[%clk 0:00:08.6]} 35. e6 {[%clk 0:00:10.9]} 35... Ne5 {[%clk 0:00:05.4]}
36. exf7+ {[%clk 0:00:09.3]} 36... Nxf7 {[%clk 0:00:05.7]} 37. Qxf5 {[%clk
0:00:09.5]} 37... Rxa7 {[%clk 0:00:06.3]} 38. Qf3 {[%clk 0:00:07.6]} 38... Qa4
{[%clk 0:00:05.5]} 39. Qd5 {[%clk 0:00:07.1]} 39... Qe8 {[%clk 0:00:05.4]} 40.
Qxc5 {[%clk 0:00:05.5]} 40... Re7 {[%clk 0:00:05.5]} 41. Qxd4 {[%clk 0:00:05.5]}
41... Kh8 {[%clk 0:00:05.2]} 42. Nd3 {[%clk 0:00:05.7]} 42... Ng5 {[%clk
0:00:05.1]} 43. Nf4 {[%clk 0:00:06]} 43... Ne4 {[%clk 0:00:05.2]} 44. Re2 {[%clk
0:00:05]} 44... Qf7 {[%clk 0:00:05.3]} 45. Rxe4 {[%clk 0:00:05]} 45... Rxe4
{[%clk 0:00:05.7]} 46. Qxe4 {[%clk 0:00:05.8]} 46... Qf8 {[%clk 0:00:04.6]} 47.
Qd4 {[%clk 0:00:06.7]} 47... Kg8 {[%clk 0:00:04.6]} 48. Qxg7+ {[%clk 0:00:07.2]}
48... Qxg7 {[%clk 0:00:04.4]} 49. Bxg7 {[%clk 0:00:08.1]} 1-0

[Event "*** Titled Tuesday Blitz"]
[Site "Chess.com"]
[Date "2020.10.27"]
[Round "5"]
[White "GoltsevDmitry2000"]
[Black "Firouzja2003"]
[Result "0-1"]
[WhiteElo "2709"]
[BlackElo "3066"]
[TimeControl "180+1"]
[EndTime "10:56:41 PDT"]
[Termination "Firouzja2003 won by resignation"]

1. e4 {[%clk 0:02:59.3]} 1... e6 {[%clk 0:02:54.6]} 2. Nf3 {[%clk 0:02:59.1]}
2... b6 {[%clk 0:02:54.6]} 3. Nc3 {[%clk 0:02:55.1]} 3... Bb7 {[%clk 0:02:53.7]}
4. d4 {[%clk 0:02:55.4]} 4... Bb4 {[%clk 0:02:52.2]} 5. Bd3 {[%clk 0:02:54]}
5... d5 {[%clk 0:02:47.4]} 6. exd5 {[%clk 0:02:53]} 6... Qxd5 {[%clk 0:02:48.3]}
7. O-O {[%clk 0:02:42.9]} 7... Bxc3 {[%clk 0:02:48.2]} 8. bxc3 {[%clk
0:02:43.8]} 8... Nd7 {[%clk 0:02:48.5]} 9. Re1 {[%clk 0:02:42.4]} 9... Ngf6
{[%clk 0:02:48.1]} 10. Bf4 {[%clk 0:02:36.6]} 10... O-O-O {[%clk 0:02:42.9]} 11.
c4 {[%clk 0:02:15.1]} 11... Qh5 {[%clk 0:02:42.4]} 12. Ne5 {[%clk 0:02:13.5]}
12... Nxe5 {[%clk 0:02:28.4]} 13. Bxe5 {[%clk 0:01:54.5]} 13... Qxd1 {[%clk
0:02:13.5]} 14. Raxd1 {[%clk 0:01:55.4]} 14... Ng4 {[%clk 0:02:14]} 15. c3
{[%clk 0:01:21]} 15... Nxe5 {[%clk 0:02:05.2]} 16. Rxe5 {[%clk 0:01:21.9]} 16...
Rhe8 {[%clk 0:01:44.1]} 17. Be4 {[%clk 0:01:11.5]} 17... Ba6 {[%clk 0:01:32.5]}
18. Bc6 {[%clk 0:01:05.6]} 18... Re7 {[%clk 0:01:30.6]} 19. c5 {[%clk
0:01:05.9]} 19... f6 {[%clk 0:01:25.4]} 20. Ree1 {[%clk 0:00:52.1]} 20... bxc5
{[%clk 0:01:25.4]} 21. dxc5 {[%clk 0:00:53]} 21... Rxd1 {[%clk 0:01:24.5]} 22.
Rxd1 {[%clk 0:00:53.9]} 22... Bb7 {[%clk 0:01:24.4]} 23. Ba4 {[%clk 0:00:38.2]}
23... c6 {[%clk 0:01:23.4]} 24. Rd6 {[%clk 0:00:37.1]} 24... Kc7 {[%clk
0:01:23.7]} 25. Bc2 {[%clk 0:00:34.1]} 25... h6 {[%clk 0:01:18.1]} 26. h4 {[%clk
0:00:31]} 26... Bc8 {[%clk 0:01:15.6]} 27. Be4 {[%clk 0:00:30.5]} 27... Bd7
{[%clk 0:01:15.9]} 28. Rd4 {[%clk 0:00:27.1]} 28... f5 {[%clk 0:01:05.6]} 29.
Bc2 {[%clk 0:00:20.1]} 29... Bc8 {[%clk 0:00:56.2]} 30. Rd6 {[%clk 0:00:16.5]}
30... e5 {[%clk 0:00:47.7]} 31. Bb3 {[%clk 0:00:12.5]} 31... e4 {[%clk
0:00:46.7]} 32. g3 {[%clk 0:00:09]} 32... Bd7 {[%clk 0:00:44.6]} 33. Rg6 {[%clk
0:00:09.1]} 33... Be8 {[%clk 0:00:44]} 34. Rd6 {[%clk 0:00:09.3]} 34... Re5
{[%clk 0:00:43.5]} 35. Re6 {[%clk 0:00:06.3]} 35... Rxe6 {[%clk 0:00:42.9]} 36.
Bxe6 {[%clk 0:00:07.2]} 36... Bd7 {[%clk 0:00:43.6]} 37. Bc4 {[%clk 0:00:07.6]}
37... Kd8 {[%clk 0:00:39]} 38. Kf1 {[%clk 0:00:08]} 38... Ke7 {[%clk 0:00:39.1]}
39. Ke2 {[%clk 0:00:08.5]} 39... Kf6 {[%clk 0:00:36.3]} 40. Ke3 {[%clk
0:00:07.8]} 40... Ke5 {[%clk 0:00:36.7]} 41. Bb3 {[%clk 0:00:07.9]} 41... g5
{[%clk 0:00:35.3]} 42. hxg5 {[%clk 0:00:07.6]} 42... hxg5 {[%clk 0:00:36.2]} 43.
f4+ {[%clk 0:00:08]} 43... exf3 {[%clk 0:00:32.8]} 44. Kxf3 {[%clk 0:00:08.8]}
44... Be6 {[%clk 0:00:33.2]} 45. Bc2 {[%clk 0:00:08.7]} 45... Bxa2 {[%clk
0:00:32.4]} 46. Ba4 {[%clk 0:00:08.2]} 46... Bd5+ {[%clk 0:00:31.4]} 47. Ke3
{[%clk 0:00:08.5]} 47... Be4 {[%clk 0:00:30]} 48. Bb3 {[%clk 0:00:04.6]} 48...
a5 {[%clk 0:00:30]} 49. Ba4 {[%clk 0:00:04.4]} 49... f4+ {[%clk 0:00:29.9]} 50.
gxf4+ {[%clk 0:00:04.7]} 50... gxf4+ {[%clk 0:00:30.8]} 51. Ke2 {[%clk
0:00:05.6]} 51... Kd5 {[%clk 0:00:31.3]} 52. Bb3+ {[%clk 0:00:05.6]} 52... Kxc5
{[%clk 0:00:31.7]} 53. Ba2 {[%clk 0:00:05.7]} 53... Bd5 {[%clk 0:00:30.7]} 54.
Bb1 {[%clk 0:00:05.1]} 54... a4 {[%clk 0:00:30.9]} 55. Kf2 {[%clk 0:00:05.2]}
55... a3 {[%clk 0:00:31.2]} 0-1

[Event "*** Titled Tuesday Blitz"]
[Site "Chess.com"]
[Date "2020.10.27"]
[Round "5"]
[White "AndrewMaco"]
[Black "Fandorine"]
[Result "0-1"]
[WhiteElo "2657"]
[BlackElo "2855"]
[TimeControl "180+1"]
[EndTime "10:56:48 PDT"]
[Termination "Fandorine won by checkmate"]

1. e4 {[%clk 0:02:57.8]} 1... c5 {[%clk 0:03:00.5]} 2. Nf3 {[%clk 0:02:57.2]}
2... d6 {[%clk 0:03:01]} 3. d4 {[%clk 0:02:57.2]} 3... cxd4 {[%clk 0:03:01.9]}
4. Nxd4 {[%clk 0:02:58.1]} 4... Nf6 {[%clk 0:03:02.6]} 5. Nc3 {[%clk 0:02:58.7]}
5... a6 {[%clk 0:03:03.2]} 6. f3 {[%clk 0:02:59.3]} 6... e6 {[%clk 0:02:59.1]}
7. Be3 {[%clk 0:02:59.2]} 7... b5 {[%clk 0:02:57.8]} 8. Qd2 {[%clk 0:02:59.5]}
8... b4 {[%clk 0:02:57.9]} 9. Na4 {[%clk 0:02:58.3]} 9... Nbd7 {[%clk
0:02:58.3]} 10. c3 {[%clk 0:02:55.9]} 10... bxc3 {[%clk 0:02:57.7]} 11. Nxc3
{[%clk 0:02:56.8]} 11... Bb7 {[%clk 0:02:58]} 12. Be2 {[%clk 0:02:55.9]} 12...
Be7 {[%clk 0:02:57.8]} 13. O-O {[%clk 0:02:56.5]} 13... O-O {[%clk 0:02:58.3]}
14. Rfc1 {[%clk 0:02:56.9]} 14... Qb8 {[%clk 0:02:50.4]} 15. b4 {[%clk 0:02:51]}
15... Rc8 {[%clk 0:02:41.6]} 16. b5 {[%clk 0:02:26.5]} 16... axb5 {[%clk
0:02:38]} 17. Bxb5 {[%clk 0:02:27.4]} 17... Nc5 {[%clk 0:02:14]} 18. Rab1 {[%clk
0:02:25]} 18... Qa7 {[%clk 0:02:10.4]} 19. a4 {[%clk 0:02:17.6]} 19... Rab8
{[%clk 0:02:06.3]} 20. Bf1 {[%clk 0:01:57.6]} 20... Qa8 {[%clk 0:01:56.8]} 21.
Ndb5 {[%clk 0:01:44.3]} 21... Ne8 {[%clk 0:01:56.8]} 22. Qa2 {[%clk 0:01:34.6]}
22... Ba6 {[%clk 0:01:38.2]} 23. Qf2 {[%clk 0:01:17.4]} 23... Bf6 {[%clk
0:01:18]} 24. Bd4 {[%clk 0:01:13.9]} 24... Bxb5 {[%clk 0:01:08.3]} 25. Bxb5
{[%clk 0:01:10.2]} 25... Nc7 {[%clk 0:00:37.9]} 26. Bxf6 {[%clk 0:01:01.9]}
26... gxf6 {[%clk 0:00:38.1]} 27. Qg3+ {[%clk 0:01:02]} 27... Kh8 {[%clk
0:00:38.5]} 28. Qxd6 {[%clk 0:01:01.4]} 28... Qa7 {[%clk 0:00:38.9]} 29. Kh1
{[%clk 0:01:00.4]} 29... Rd8 {[%clk 0:00:34.9]} 30. Qf4 {[%clk 0:00:57.1]} 30...
Kg7 {[%clk 0:00:32.9]} 31. e5 {[%clk 0:00:38.7]} 31... f5 {[%clk 0:00:26.2]} 32.
Qg5+ {[%clk 0:00:37.6]} 32... Kh8 {[%clk 0:00:24.7]} 33. Qf6+ {[%clk 0:00:20.6]}
33... Kg8 {[%clk 0:00:24.4]} 34. h4 {[%clk 0:00:20.5]} 34... Nd7 {[%clk
0:00:11]} 35. Qg5+ {[%clk 0:00:20.6]} 35... Kh8 {[%clk 0:00:11.3]} 36. Bxd7
{[%clk 0:00:19.8]} 36... Rxd7 {[%clk 0:00:12.2]} 37. h5 {[%clk 0:00:15.2]} 37...
Ne8 {[%clk 0:00:07.7]} 38. h6 {[%clk 0:00:10.8]} 38... Rxb1 {[%clk 0:00:07]} 39.
Rxb1 {[%clk 0:00:11.6]} 39... Qc7 {[%clk 0:00:04.7]} 40. Qe3 {[%clk 0:00:09.8]}
40... f4 {[%clk 0:00:04.3]} 41. Qxf4 {[%clk 0:00:03.6]} 41... f5 {[%clk
0:00:04.6]} 42. Qe3 {[%clk 0:00:02.5]} 42... Qd8 {[%clk 0:00:04.3]} 43. Rc1
{[%clk 0:00:02.7]} 43... Rd3 {[%clk 0:00:04.2]} 44. Qf4 {[%clk 0:00:02.2]} 44...
Rd4 {[%clk 0:00:04.7]} 45. Qe3 {[%clk 0:00:02.4]} 45... Qh4+ {[%clk 0:00:04.9]}
46. Kg1 {[%clk 0:00:02.4]} 46... Qd8 {[%clk 0:00:05.2]} 47. Qf2 {[%clk
0:00:02.6]} 47... Rd3 {[%clk 0:00:05.4]} 48. Nb5 {[%clk 0:00:02.8]} 48... Qg5
{[%clk 0:00:04.3]} 49. Re1 {[%clk 0:00:01.4]} 49... Rd2 {[%clk 0:00:04.2]} 50.
Qe3 {[%clk 0:00:01.7]} 50... Qxg2# {[%clk 0:00:04.2]} 0-1

[Event "*** Titled Tuesday Blitz"]
[Site "Chess.com"]
[Date "2020.10.27"]
[Round "5"]
[White "deep306"]
[Black "Ind1anStar"]
[Result "1-0"]
[WhiteElo "2597"]
[BlackElo "2409"]
[TimeControl "180+1"]
[EndTime "10:56:56 PDT"]
[Termination "deep306 won by resignation"]

1. e4 {[%clk 0:03:00.9]} 1... e6 {[%clk 0:02:59.9]} 2. d4 {[%clk 0:02:56.8]}
2... d5 {[%clk 0:03:00.2]} 3. Nc3 {[%clk 0:02:57.1]} 3... Nf6 {[%clk 0:03:00.1]}
4. e5 {[%clk 0:02:55.2]} 4... Nfd7 {[%clk 0:03:00.1]} 5. Nce2 {[%clk 0:02:55.6]}
5... c5 {[%clk 0:02:59.3]} 6. c3 {[%clk 0:02:56.3]} 6... Nc6 {[%clk 0:02:59.4]}
7. Nf3 {[%clk 0:02:56.9]} 7... Qb6 {[%clk 0:02:58.7]} 8. g3 {[%clk 0:02:56.2]}
8... f6 {[%clk 0:02:50.1]} 9. exf6 {[%clk 0:02:50.2]} 9... Nxf6 {[%clk 0:02:50]}
10. Bg2 {[%clk 0:02:49.6]} 10... Bd6 {[%clk 0:02:47]} 11. O-O {[%clk 0:02:49]}
11... O-O {[%clk 0:02:47.2]} 12. Bf4 {[%clk 0:02:27.8]} 12... Bxf4 {[%clk
0:02:36.6]} 13. Nxf4 {[%clk 0:02:26.4]} 13... cxd4 {[%clk 0:02:24.1]} 14. Nxd4
{[%clk 0:02:22.1]} 14... Nxd4 {[%clk 0:02:18.1]} 15. Qxd4 {[%clk 0:02:21.7]}
15... Qxb2 {[%clk 0:02:07.4]} 16. Rfe1 {[%clk 0:02:14.2]} 16... Bd7 {[%clk
0:01:03.9]} 17. Rab1 {[%clk 0:02:03.9]} 17... Qxa2 {[%clk 0:01:04.1]} 18. Rxb7
{[%clk 0:02:03.7]} 18... Rfb8 {[%clk 0:00:52.6]} 19. Rxd7 {[%clk 0:01:58.5]}
19... Nxd7 {[%clk 0:00:48.5]} 20. Nxe6 {[%clk 0:01:58.7]} 20... Nf6 {[%clk
0:00:44.5]} 21. h3 {[%clk 0:00:43.7]} 21... Rb1 {[%clk 0:00:43.1]} 22. Rxb1
{[%clk 0:00:43.4]} 22... Qxb1+ {[%clk 0:00:44]} 23. Kh2 {[%clk 0:00:44.1]} 23...
Qf5 {[%clk 0:00:28.8]} 24. Nc7 {[%clk 0:00:43.8]} 24... Rd8 {[%clk 0:00:22.1]}
25. g4 {[%clk 0:00:25.3]} 25... Qd7 {[%clk 0:00:20.3]} 26. Qe5 {[%clk
0:00:17.6]} 26... Qxg4 {[%clk 0:00:12.4]} 27. Ne6 {[%clk 0:00:14.1]} 27... Re8
{[%clk 0:00:07.1]} 28. Bxd5 {[%clk 0:00:14.2]} 28... Kh8 {[%clk 0:00:03.5]} 29.
Qxf6 {[%clk 0:00:12.1]} 29... Qxh3+ {[%clk 0:00:02.7]} 30. Kxh3 {[%clk
0:00:12.2]} 30... gxf6 {[%clk 0:00:03.6]} 31. c4 {[%clk 0:00:11.2]} 31... Re7
{[%clk 0:00:03.6]} 32. c5 {[%clk 0:00:11.5]} 32... h5 {[%clk 0:00:03.8]} 33. f4
{[%clk 0:00:11.3]} 33... a5 {[%clk 0:00:04.2]} 34. f5 {[%clk 0:00:11.2]} 34...
a4 {[%clk 0:00:04.9]} 35. c6 {[%clk 0:00:11.8]} 35... a3 {[%clk 0:00:05.2]} 36.
c7 {[%clk 0:00:12.2]} 36... Rxc7 {[%clk 0:00:05.5]} 37. Nxc7 {[%clk 0:00:12.4]}
37... Kh7 {[%clk 0:00:05.9]} 38. Ne6 {[%clk 0:00:11.3]} 38... a2 {[%clk
0:00:06.8]} 39. Bxa2 {[%clk 0:00:11.2]} 39... Kh6 {[%clk 0:00:07.7]} 40. Kh4
{[%clk 0:00:10.9]} 40... Kh7 {[%clk 0:00:08.3]} 41. Kxh5 {[%clk 0:00:11.2]}
41... Kh8 {[%clk 0:00:09.2]} 42. Nf4 {[%clk 0:00:10.3]} 42... Kh7 {[%clk
0:00:09.8]} 43. Bb1 {[%clk 0:00:11]} 43... Kg7 {[%clk 0:00:10.5]} 44. Ne6+
{[%clk 0:00:10.6]} 44... Kh7 {[%clk 0:00:11]} 45. Nf8+ {[%clk 0:00:09.5]} 45...
Kg7 {[%clk 0:00:11.5]} 46. Nd7 {[%clk 0:00:09.4]} 46... Kf7 {[%clk 0:00:07.7]}
47. Kh6 {[%clk 0:00:09.6]} 47... Ke7 {[%clk 0:00:08.4]} 48. Nb8 {[%clk
0:00:09.2]} 48... Kf7 {[%clk 0:00:09]} 49. Kh7 {[%clk 0:00:09.5]} 49... Ke7
{[%clk 0:00:09.1]} 50. Kg7 {[%clk 0:00:09.9]} 50... Ke8 {[%clk 0:00:09.7]} 51.
Kxf6 {[%clk 0:00:10]} 51... Kf8 {[%clk 0:00:10.6]} 52. Nd7+ {[%clk 0:00:10]}
52... Kg8 {[%clk 0:00:11.5]} 53. Ne5 {[%clk 0:00:10.1]} 53... Kh7 {[%clk
0:00:12.4]} 54. Ke7 {[%clk 0:00:10.2]} 54... Kh6 {[%clk 0:00:12.7]} 55. f6
{[%clk 0:00:10.2]} 55... Kg5 {[%clk 0:00:12.6]} 56. f7 {[%clk 0:00:10.7]} 56...
Kh4 {[%clk 0:00:13.2]} 1-0